Cogmind - Beta 15 @@@ ROGUE MODE // 2025.05.24 @ 15:21:24 Player: KeKe Result: Destroyed by KH-M84(R) with Subdweller Laser Performance ------------- Evolutions (0) 0 Regions Visited (2) 400 Robots Destroyed (25) 125 Value Destroyed (359) 359 Prototype IDs (0) 0 Alien Tech Used (0) 0 Bonus (0) 0 TOTAL SCORE: 884 Bonus ------- None Cogmind --------- Core Integrity 0/250 Matter 265/300 Energy 234/250 System Corruption 0% Temperature Cool (6) Movement Treading (160) Location -10/Subcaves Parts ------- > --- POWER (1) -------- Ion Engine > --- PROPULSION (2) --- Light Treads Light Treads > --- UTILITY (2) ------ Large Storage Unit Improved Terrain Scanner > --- WEAPON (2) ------- Flamer > --- INVENTORY (15) --- Ion Engine Light Treads Light Treads Heat Sink Medium Storage Unit Signal Interpreter Light Assault Rifle Subdweller Machine Gun Battle Cannon Peak State ------------ > --- POWER ------------ Ion Engine > --- PROPULSION ------- Light Treads Light Treads > --- UTILITY ---------- Large Storage Unit Improved Terrain Scanner > --- WEAPON ----------- Assault Rifle Subdweller Machine Gun > --- INVENTORY -------- Ion Engine Light Treads Light Treads Heat Sink Medium Storage Unit Signal Interpreter Light Assault Rifle Battle Cannon Grenade Launcher Flamer [Rating: 11] Favorites ----------- Power Ion Engine Engine Ion Engine Propulsion Light Treads Treads Light Treads Utility Improved Terrain Scanner Device Improved Terrain Scanner Storage Large Storage Unit Weapon Assault Rifle Ballistic Gun Assault Rifle Launcher Grenade Launcher Special Weapon Flamer Build | -11 -10 -10 ------- Run | Yrd Mat Sub Slots Evolved . | . . . Power . | . . . Propulsion . | . . . Utility . | . . . Weapon . | . . . Parts Attached 15 | 7 6 2 Power 1 | 1 . . Engine 1 | 1 . . Core . | . . . Reactor . | . . . Propulsion 4 | 2 2 . Treads 4 | 2 2 . Leg . | . . . Wheel . | . . . Hover . | . . . Flight . | . . . Utility 4 | 2 2 . Device 1 | 1 . . Storage 3 | 1 2 . Processor . | . . . Hackware . | . . . Protection . | . . . Artifact . | . . . Weapon 6 | 2 2 2 Energy Gun . | . . . Energy Cannon . | . . . Ballistic Gun 4 | 2 1 1 Ballistic Cannon . | . . . Launcher 1 | . 1 . Special Weapon 1 | . . 1 Impact Weapon . | . . . Slashing Weapon . | . . . Piercing Weapon . | . . . Special Melee Weapon . | . . . Unidentified Prototypes . | . . . Parts Lost 2 | . . 2 Power . | . . . Propulsion . | . . . Utility . | . . . Weapon 2 | . . 2 Highest Loss Streak 2 | . . 2 To Critical Strikes . | . . . Average Backups 6 | 2 6 9 Power . | . 1 1 Propulsion 2 | 1 2 2 Utility 1 | . 1 3 Weapon 1 | . 1 3 Tool/Special . | . . . Unused Backups 6 | . 2 4 Power 1 | . . 1 Propulsion 2 | . 2 . Utility 2 | . . 2 Weapon 1 | . . 1 Tool/Special . | . . . Average Slot Usage (%) 99 | . 99 99 Engine 14 | . 14 14 Treads 27 | . 27 28 Device 14 | . 14 14 Storage 14 | . 14 14 Ballistic Gun 24 | . 27 17 Launcher 2 | . . 10 Peak Build Rating 11 | 9 9 11 Average Rating 8 | 5 8 10 On Entrance 6 | . 9 9 Naked Turns . | . . . Heaviest Build 32 | 14 29 32 Greatest Support 40 | 40 40 40 Greatest Overweight (x) . | . . . Average Overweight (x) . | . . . Largest Inventory Capacity 15 | 8 15 15 Average Capacity 13 | 7 13 15 Most Carried 10 | 3 9 10 Average Carried 6 | 2 6 9 Final Capacity 15 | 8 15 15 Final Carried 9 | 3 8 9 Class Distribution -------------------- 100% | Mutant Dominant Class ---------------- Mutant | -10/Materials Mutant | -10/Subcaves Resources | -11 -10 -10 ----------- Run | Yrd Mat Sub Matter Collected 757 | 194 382 181 Remotely . | . . . Salvage Created 635 | 76 551 8 Parts 38 | 5 32 1 Haulers Intercepted 2 | . 2 . Recyclers Shooed 3 | 1 2 . Parts Field Recycled . | . . . Retrieved Matter . | . . . Parts Self-Destructed 3 | . . 3 Prevented . | . . . Kills | -11 -10 -10 ------- Run | Yrd Mat Sub Combat Hostiles Destroyed 15 | . 14 1 Guns 6 | . 5 1 AOE 9 | . 9 . Classes Destroyed 7 | 2 4 1 Worker 2 | . 2 . Tunneler 2 | 1 1 . Hauler 2 | . 2 . Recycler 4 | 1 3 . Swarmer 9 | . 9 . Grunt 5 | . 5 . Sentry 1 | . . 1 Best Kill Streak 6 | 1 6 1 Combat Bots Only 3 | . 3 1 Max Kills in Single Turn 2 | 1 2 1 Gunslinging . | . . . Exploded 2 | . 2 . Melee . | . . . Uniques/NPCs Destroyed . | . . . Combat | -11 -10 -10 -------- Run | Yrd Mat Sub Hostile Shots Fired 71 | . 50 21 Missed 17 | . 13 4 Hits 54 | . 37 17 Projectile 54 | . 37 17 Critical Strikes 1 | . 1 . Damage Taken 855 | . 406 449 Core 265 | . 99 166 Absorbed by Shields . | . . . Core Remaining (%) 100 | 100 . . Volleys Fired 65 | 7 51 7 Largest 2 | 2 2 2 Hottest 100 | 40 40 100 Shots Fired 117 | 14 92 11 Gun 104 | 14 82 8 Cannon . | . . . Launcher 12 | . 10 2 Special 1 | . . 1 Kinetic 104 | 14 82 8 Thermal 1 | . . 1 Explosive 12 | . 10 2 Electromagnetic . | . . . Robot Hit Streak 16 | 7 16 6 Robot Miss Streak 4 | 2 4 1 Penetration Max . | . . . Secondary Targets . | . . . Shots Hit Robots 77 | 9 59 9 Core Hits 40 | 3 34 3 Critical Kills . | . . . Critical Parts Destroyed . | . . . Critical Strikes . | . . . Melee Attacks . | . . . Impact . | . . . Slashing . | . . . Piercing . | . . . Sneak Attacks . | . . . Combat Hostiles . | . . . Follow-up Attacks . | . . . Damage Inflicted 1800 | 100 1331 369 Guns 778 | 100 567 111 Cannons . | . . . Explosions 1012 | . 764 248 Melee . | . . . Ramming . | . . . Kinetic 778 | 100 567 111 Thermal 10 | . . 10 Explosive 1012 | . 764 248 Electromagnetic . | . . . Impact . | . . . Slashing . | . . . Piercing . | . . . Highest Corruption . | . . . Average Corruption . | . . . Corruption Purged . | . . . Corruption Blocked . | . . . Overload Shots . | . . . Overflow Damage 44 | . 44 . Projectiles . | . . . Explosions 44 | . 44 . Melee . | . . . Knockbacks . | . . . Impact . | . . . Kinetic . | . . . Secondary . | . . . Self-Inflicted Damage 117 | . 44 73 Shots 4 | . 2 2 Rammed . | . . . Targets Rammed . | . . . Kicked . | . . . Crushed . | . . . Highest Temperature 12 | . 12 . Average Temperature 6 | . 6 . Received Heat Transfer 210 | . 138 72 Siege Activations . | . . . Martial Activations . | . . . Shielding Activations . | . . . Robots Disrupted . | . . . Combat Hostiles . | . . . Robots Corrupted . | . . . Combat Hostiles . | . . . Parts Fried . | . . . Impact Corruptions . | . . . Robots Melted . | . . . Combat Hostiles . | . . . Parts Melted . | . . . Heat Transferred 80 | . . 80 Parts Sabotaged . | . . . Parts Stolen . | . . . Parts Stripped . | . . . Power Chain Reactions . | . . . Alert | -11 -10 -10 ------- Run | Yrd Mat Sub Maximum Alert Level 1 | . 1 . Low Security (%) 93 | 100 93 . Level 1 6 | . 6 . Level 2 . | . . . Level 3 . | . . . Level 4 . | . . . Level 5 . | . . . High Security . | . . . Max Security . | . . . Peak Influence 222 | 5 222 . Initial . | . . . Average 70 | . 77 . Influence Increases 563 | 10 533 20 Destroy 0b10 Robot/C 300 | . 280 20 Destroy 0b10 Robot/NC 50 | 10 40 . Destroy Leader 64 | . 64 . Successful Hack 6 | . 6 . Select Force Hacks 60 | . 60 . Disable Machine 15 | . 15 . Destroy Structure 68 | . 68 . Influence Decreases 563 | 10 365 188 Entered New Map 81 | . . 81 Time Decay 482 | 10 365 107 Squads Dispatched 3 | . 3 . Investigation 3 | . 3 . Extermination . | . . . Reinforcement . | . . . Assault . | . . . Garrison . | . . . Intercept . | . . . Searches Triggered . | . . . Construction Impeded . | . . . Haulers Reinforced . | . . . Active Scanning Responses . | . . . Cargo Convoy Interrupts . | . . . Stealth | -11 -10 -10 --------- Run | Yrd Mat Sub Distress Signals 1 | . 1 . Communications Jammed . | . . . Distress Signals . | . . . Times Spotted 26 | . 22 4 Peak Tracking Total 5 | . 5 3 Tactical Retreats . | . . . Traps | -11 -10 -10 ------- Run | Yrd Mat Sub Traps Triggered 4 | . 3 1 Indirectly . | . . . Trap Hack Attempts . | . . . Triggered . | . . . Disarmed . | . . . Reprogrammed . | . . . Reused . | . . . Traps Extracted . | . . . Installed . | . . . Triggered . | . . . Machines | -11 -10 -10 ---------- Run | Yrd Mat Sub Machines Disabled 1 | . 1 . Max in Single Turn 1 | . 1 . Machines Repaired . | . . . Machines Dismantled . | . . . Machines Sabotaged . | . . . Overloaded Fab Kills . | . . . Hacking | -11 -10 -10 --------- Run | Yrd Mat Sub Machines Accessed 3 | . 3 . Terminals 1 | . 1 . Fabricators . | . . . Repair Stations . | . . . Recycling Units 2 | . 2 . Scanalyzers . | . . . Garrison Access . | . . . Total Hacks 3 | . 3 . Successful 3 | . 3 . Failed . | . . . Catastrophic . | . . . Database Lockouts . | . . . Manual 3 | . 3 . Terminals 1 | . 1 . Fabricators . | . . . Repair Stations . | . . . Recycling Units 2 | . 2 . Scanalyzers . | . . . Garrison Access . | . . . Terminal Hacks 1 | . 1 . Zone Layout 1 | . 1 . Fabricator Hacks . | . . . Repair Station Hacks . | . . . Recycling Unit Hacks . | . . . Scanalyzer . | . . . Garrison Access Hacks . | . . . Unauthorized Hacks 2 | . 2 . Terminals . | . . . Fabricators . | . . . Repair Stations . | . . . Recycling Units 2 | . 2 . Tunnel 2 | . 2 . Scanalyzers . | . . . Garrison Access . | . . . Data Cores Recovered . | . . . Used . | . . . Hacking Detections 1 | . 1 . Full Trace Events . | . . . Feedback Events . | . . . Feedback Blocked . | . . . Robot Schematics Acquired . | . . . Robots Built . | . . . Authchips . | . . . Time . | . . . Total Robot Build Rating . | . . . Part Schematics Acquired . | . . . Parts Built . | . . . Authchips . | . . . Time . | . . . Total Part Build Rating . | . . . Parts Repaired . | . . . Time . | . . . Parts Recycled . | . . . Recycled Matter . | . . . Retrieved Matter . | . . . Retrieved Components . | . . . Parts Scanalyzed . | . . . Part Schematics Acquired . | . . . Parts Damaged . | . . . Bothacking | -11 -10 -10 ------------ Run | Yrd Mat Sub Used RIF Installer . | . . . Robots Hacked . | . . . Non-combat . | . . . Combat . | . . . Robot Hacks Applied . | . . . Relay Couplers Released . | . . . Fabnet Peak Effective % . | . . . Robots Rewired . | . . . Allies Hacked . | . . . Hacks Repelled . | . . . Allies | -11 -10 -10 -------- Run | Yrd Mat Sub Total Allies . | . . . Largest Group . | . . . Highest-Rated Group . | . . . Highest-Rated Ally . | . . . Total Orders . | . . . Ally Attacks . | . . . Total Damage . | . . . Kills . | . . . Allies Corrupted . | . . . Allies Melted . | . . . Intel | -11 -10 -10 ------- Run | Yrd Mat Sub Active Infowar (turns) 1565 | 17 1153 395 Terrain 1565 | 17 1153 395 Robot Analysis Total . | . . . Derelict Logs Recovered 1 | . . 1 Drone Launches . | . . . Drone Recoveries . | . . . Exploration | -11 -10 -10 ------------- Run | Yrd Mat Sub Turns Passed 1665 | 117 1153 395 Spaces Moved 854 | 54 571 229 Core 1 | 1 . . Treads 853 | 53 571 229 Legs . | . . . Wheels . | . . . Hover . | . . . Flight . | . . . Fastest Speed 50 | 50 160 160 Average Speed 159 | 157 160 160 Slowest Speed 160 | 160 160 160 Overloaded Moves . | . . . Propulsion Burnouts . | . . . Robots Hopped . | . . . Potential Cave-ins . | . . . Cave-ins Triggered . | . . . Exploration Rate (%) 40 | 4 96 22 Regions Visited 2 Branch Regions 1 Pre-discovered Areas 3 | . 2 1 Known Exits Taken . | . . . Unknown Exits Taken 2 | 1 1 . Scrap Searched 3 | . . 3 Spaces Dug . | . . . Terrain Destroyed 80 | . 68 12 Melee . | . . . Projectile . | . . . AOE 80 | . 68 12 Terrain Rammed . | . . . Walls Destroyed . | . . . Machines Disabled . | . . . Actions | -11 -10 -10 --------- Run | Yrd Mat Sub Total 1034 | 70 720 244 Wait 76 | . 76 . Move 852 | 53 570 229 Hop . | . . . Pick Up 10 | 3 4 3 Fast Attach 12 | 7 5 . Attach 1 | . . 1 Detach . | . . . Swap 14 | . 11 3 Drop 4 | . 3 1 Fire 65 | 7 51 7 Melee . | . . . Ram . | . . . Kick . | . . . Crush . | . . . Escape Stasis . | . . . Rewire . | . . . Trap . | . . . Miscellaneous . | . . . Route ------- -11/Scrapyard -10/Materials (discovered 5 exits: [*Mat x3] / [*Min] / [*Sub]) -10/Subcaves History --------- Turn | Location | Event 28 | -11/Scrapyard | Discovered new exit (range 16) 118 | -11/Scrapyard | Entered Materials 198 | -10/Materials | Discovered new exit (range 16) 301 | -10/Materials | Build established: Mutant 405 | -10/Materials | Discovered new exit (range 16) 799 | -10/Materials | Discovered new exit (range 6) 834 | -10/Materials | Discovered new exit (range 3) 1261 | -10/Materials | Discovered new exit (range 6) 1271 | -10/Materials | Entered Subcaves 1549 | -10/Subcaves | A swath of the cavern ceiling suddenly collapsed 1560 | -10/Subcaves | Core integrity fell below 50% 1626 | -10/Subcaves | Learned location of Zion (-6) 1654 | -10/Subcaves | A Subdweller sparked back to life 1654 | -10/Subcaves | A Subdweller sparked back to life 1654 | -10/Subcaves | A Subdweller sparked back to life 1660 | -10/Subcaves | Core integrity fell below 20% 1666 | -10/Subcaves | Destroyed by KH-M84(R) with Subdweller Laser Last Messages --------------- 01370_ Found 58 Matter. 01371_ Acquired 58 matter. 01375_ Dropped Lgt. Assault Rifle. 01377_ Acquired Sub. Machine Gun. 01549_ Y-45 Defender crushed by falling debris. A swath of the cavern ceiling suddenly collapses. 01562_ Y-45 Defender destroyed. 01565_ Acquired 8 matter. 01568_ Beam Rifle fries itself beyond repair. 01576_ Subatomizers dissect the Terrain Scanner, destroying it. 01576_ Acquired 18 matter. 01589_ Subatomizers dissect the Mak. Flight Unit. 01626_ Acquired derelict log, extracted data. World map updated: -6/Zion. 01654_ 1D-MK6(R) creaks and sparks as it begins to move. 01654_ KH-M84(R) creaks and sparks as it begins to move. 01654_ 91-OAA(R) creaks and sparks as it begins to move. 01659_ Assault Rifle destroyed. 01661_ Grenade Launcher destroyed. 01662_ 1D-MK6(R) destroyed. Map ----- +----------------------------------------------------+ | ??????????????????????### % #?????????#?????? | | ???????????????????????# # #???????#???????? | | ???????????????????????## # #????????#??????? | | ???????????????????????## #??#????????????? | | ???????????????????#??## ###???????????????? | | ?????????????????????## ###?????????????? | | ?????????????????????# #????????#?????? | | ?????????????????????# #??????????????? | | ??????????????#????##### ##??????????????? | | ??????????????????#????## ##???????????????? | | ???????????????????????## #??????#?????????? | | ???????????????#???????# #????????????????? | | ??????????"????????????# ##?#??#??????????? | | ?????????????? ????????## ##??????????????? | | ??????????? ????????##### ## #??????#???????? | | ???????????????????## ## ### #??????????????? | | ???????# ?????????## #?#####????#?#??????? | | ????????? ???????# #?## #???#?????????? | | ?????????## ???#### ### #?????????????? | | ?????????# ?# #?????????????? | | ????????## # #??#??????????? | | ????????# ## ##?????????????? | | ????? # ## #?#????????????? | | ????? ## # < #??????????????? | | ??????? ? # ! R& #??????????????? | | ????????? *%@ ##??????????????? | | ??????????""## R #????????#??????? | | ?????????? ??#### # # << #????#?????????? | | ????????????????##### ## < ####??????????????? | | ?????????????#??????#??# #??????????#??????? | | ??????????????????????## ##?????????????????? | | ???????????????????????# #??????????????????? | | ?????????????#?????????# #??????????????????? | | ??????????????????????? #??????????????????? | | ????????????????????#?## ???????#??????????? | | ??????????????#?????#??## ??????????????????? | | ????????????????????????# ??????????????????? | | ???????????????????????? ????#?????????????? | | ???????????????????????? ??????????????????? | | ???????????????????????? ??????????????????? | | ???????????????????????? ??????????????????? | | ????????????????????????? ??????????????????? | | ???????????????????????????????????????????????? | | ???????????????????????????????????????????????? | | ???????????????????????????????????????????????? | | ???????????????????????????????????????????????? | | ???????????????????????????????????????????????? | | ???????????????????????????????????????????????? | | ???????????????????????????????????????????????? | | ???????????????????????????????????????????????? | +----------------------------------------------------+ Best States ------------- Heat Dissipation 25 Energy Generation 10 Energy Capacity 250 Matter Stores 300 Matter Capacity 300 Sight Range 16 Terrain Scan Range 16 Terrain Scan Density 10 Evasion (%) 40 Recoil Reduction 2 Item Schematics ----------------- None Robot Schematics ------------------ None Fabricated ------------ Nothing Repaired ---------- Nothing Alien Tech Used ----------------- None Achievements -------------- None Challenges ------------ None Game ------ Seed HypercooledXenonSpecial Manual? 0 Play Time 00:15:10 Cumulative 86.6 hours Start 2025.05.24 @ 15:08:54 End 2025.05.24 @ 15:21:24 Sessions 1 Manual Loads 0 Difficulty Rogue Special Mode None Game No. 80 Rogue 80 Adventurer 0 Explorer 0 Win Type - Total 1 Types 1/0/0/0/0/0/0/0/0/0 Lore% 41 Gallery% 41 Achievement% 43 Wizard Run 0 Options --------- Layout 0 ASCII 0 Keyboard 0 Movement Mouse Keybinds 0 Fullscreen 2 Font 18/SmallcapsGlow Map View 76x50 Zoom Use 0% Tactical HUD 1 Map Filters NONE Filters NONE Steam 1 RUN: c1ee80b8-80e0-4b58-abb6-86f137eba1e3